bitfinex/quotes_SOLUSD_20250922
["timestamp","ask_amount","ask_price","bid_price","bid_amount"]
[1758509185493,0.68,231.78,231.7,4.31578407]
[1758509185698,0.1,231.79,231.71,0.66]
[1758509186900,0.1,231.79,231.72,15.10443638]
[1758509187092,0.1,231.79,231.73,0.65]
[1758509187292,0.1,231.79,231.74,36.74]
[1758509187489,0.1,231.79,231.75,0.65]
[1758509187678,0.1,231.79,231.76,0.65]
[1758509187877,0.1,231.79,231.77,0.65]
[1758509188089,0.1,231.79,231.78,0.65]
[1758509188707,0.1,231.79,231.75,0.65]
[1758509188886,0.1,231.79,231.76,15.75182947]
[1758509189399,0.1,231.79,231.77,0.65]
[1758509189778,0.1,231.79,231.76,15.10182947]
[1758509189980,0.1,231.79,231.78,0.65]
[1758509190180,0.1,231.79,231.76,15.10182947]
[1758509190402,0.1,231.79,231.77,0.65]
[1758509190799,0.1,231.79,231.76,15.10182947]
[1758509190997,0.1,231.79,231.78,0.65]
[1758509191709,0.1,231.79,231.76,15.10182947]
[1758509191919,0.1,231.79,231.77,0.65]
[1758509192103,0.1,231.79,231.76,15.10182947]
[1758509192617,0.1,231.79,231.77,0.65]
[1758509192792,0.1,231.79,231.78,4.3144361]
[1758509194516,0.1,231.79,231.78,4.9644361]
[1758509194727,0.1,231.81,231.78,4.9644361]
[1758509195023,0.1,231.81,231.79,37.31]
[1758509195316,1e-08,231.83,231.79,37.31]
[1758509195516,1e-08,231.83,231.82,31.2]
[1758509195993,1e-08,231.83,231.82,31.85]
[1758509196207,1e-08,231.83,231.82,4.96369165]
[1758509196401,1e-08,231.83,231.82,36.16369165]
[1758509196615,1e-08,231.83,231.82,4.96369165]
[1758509196816,1e-08,231.83,231.82,36.16369165]
[1758509198604,1e-08,231.83,231.81,4.31377241]
[1758509199632,1e-08,231.83,231.82,0.65]
[1758509200403,1e-08,231.83,231.82,31.85]
[1758509204998,1e-08,231.83,231.82,68.43]
[1758509205210,1e-08,231.83,231.82,67.78]
[1758509208597,0.78,231.89,231.82,67.78]
[1758509208598,0.1,231.89,231.86,31.2]
[1758509208799,0.1,231.89,231.86,67.74]
[1758509209610,0.68,231.88,231.86,67.74]
[1758509210125,0.1,231.89,231.87,4.31276146]
[1758509211635,0.78,231.89,231.87,4.31276146]
[1758509211921,0.1,231.89,231.87,4.31276146]
[1758509214325,0.78,231.89,231.87,4.31276146]
[1758509214527,0.1,231.89,231.87,4.31276146]
[1758509215835,0.78,231.89,231.87,4.31276146]
[1758509216137,0.1,231.89,231.87,4.31276146]
[1758509217910,0.1,231.89,231.87,4.97276146]
[1758509218124,0.1,231.89,231.87,4.31276146]
[1758509218315,0.1,231.89,231.88,36.48]
[1758509218632,0.1,231.92,231.88,52.23401414]
[1758509218928,0.1,231.92,231.89,0.66]
[1758509219128,0.1,231.92,231.9,37.12]
[1758509219503,0.1,231.92,231.9,36.46]
[1758509220830,0.1,231.92,231.91,4.31201759]
[1758509221025,0.1,231.97,231.91,4.97201759]
[1758509221231,0.1,231.97,231.92,37.1]
[1758509221450,0.1,231.97,231.92,36.44]
[1758509221615,0.1,231.97,231.91,35.51201759]
[1758509221950,0.67,231.96,231.92,67.64]
[1758509222454,0.77,231.93,231.91,40.75201759]
[1758509222809,0.67,231.92,231.91,40.75201759]
[1758509223547,0.1,231.93,231.91,40.75201759]
[1758509224038,0.77,231.93,231.91,40.75201759]
[1758509224238,0.1,231.93,231.91,40.75201759]
[1758509225413,0.67,231.92,231.91,36.44]
[1758509225639,0.67,231.92,231.91,40.75200526]
[1758509225814,0.1,231.93,231.91,40.75200526]
[1758509226615,0.1,231.93,231.92,0.66]
[1758509227137,0.1,231.93,231.91,40.75200526]
[1758509227912,0.77,231.93,231.91,36.44]
[1758509228119,0.77,231.93,231.91,40.75198259]
[1758509228323,0.1,231.93,231.91,40.75198259]
[1758509230343,0.1,231.93,231.92,0.66]
[1758509230639,0.1,231.93,231.91,40.75198259]
[1758509230956,0.1,231.93,231.91,41.41198259]
[1758509231638,0.1,231.93,231.91,40.75198259]
[1758509232534,0.1,231.97,231.92,0.66]
[1758509232839,0.1,231.97,231.93,37.02]
[1758509233226,0.1,231.97,231.94,0.66]
[1758509233432,0.1,231.97,231.96,4.31108811]
[1758509235159,0.1,231.97,231.95,36.36]
[1758509235359,0.1,231.97,231.95,40.67127012]
[1758509236645,0.1,231.97,231.92,31.2]
[1758509236646,0.66,231.96,231.92,31.2]
[1758509236959,0.1,231.97,231.93,36.98]
[1758509237656,0.1,231.97,231.93,36.32]
[1758509237939,0.1,231.97,231.94,15.09010951]
[1758509238139,0.1,231.97,231.95,36.32]
[1758509238355,0.66,231.96,231.94,4.31145986]
[1758509238525,0.1,231.97,231.95,36.32]
[1758509239243,0.76,231.97,231.95,36.32]
[1758509239924,0.76,231.97,231.96,4.31108811]
[1758509240542,0.76,231.97,231.95,36.32]
[1758509240746,0.1,231.97,231.95,36.32]
[1758509240925,0.1,231.97,231.95,40.63126989]
[1758509241126,0.1,231.97,231.95,36.32]
[1758509241622,0.1,231.97,231.95,40.63124011]
[1758509241819,0.66,231.96,231.89,0.66]
[1758509242051,0.66,231.96,231.9,71.79220353]
[1758509242427,0.66,231.96,231.9,82.57271237]
[1758509242641,0.1,231.97,231.9,83.23271237]
[1758509243247,0.1,231.97,231.91,0.66]
[1758509243550,0.1,231.97,231.92,36.28]
[1758509243760,0.1,231.97,231.92,36.94]
[1758509244129,0.76,231.97,231.93,4.31164575]
[1758509244330,0.76,231.97,231.94,36.28]
[1758509246130,1e-08,232.03,231.98,31.2]
[1758509246447,1e-08,232.03,232.02,31.2]
[1758509246627,1e-08,232.03,232.02,67.46]
[1758509246830,1e-08,232.03,232.02,68.18]
[1758509248069,1e-08,232.03,232.02,72.48997327]
[1758509248250,1e-08,232.03,232.02,36.24]
[1758509248852,1e-08,232.03,232.02,36.96]
[1758509249843,1e-08,232.03,232.02,38.68752596]
[1758509250043,1e-08,232.03,232.02,42.27749923]
[1758509250243,1e-08,232.03,232.02,42.99749923]
[1758509251785,1e-08,232.03,232.02,42.27749923]
[1758509252072,0.70000001,232.03,231.97,4.31080786]
[1758509252234,0.7,232.02,231.97,1.72789909]
[1758509252437,0.7,232.01,231.93,27.930454]
[1758509252660,0.7,232.0,231.94,4.31145341]
[1758509252962,0.7,231.99,231.94,4.31145341]
[1758509253172,0.7,231.98,231.93,14.8]
[1758509253507,0.7,231.97,231.93,14.8]
[1758509253757,0.7,231.96,231.93,19.11163983]
[1758509256057,4.31053329,231.99,231.93,19.11163983]
[1758509256358,0.7,231.95,231.93,19.11163983]
[1758509256663,0.7,231.95,231.93,14.8]
[1758509256846,0.7,231.95,231.9,4.31220353]
[1758509257048,4.31053329,231.99,231.9,40.51220353]
[1758509257252,0.7,231.95,231.9,40.51220353]
[1758509258071,0.7,231.95,231.81,21.56910243]
[1758509258072,0.7,231.94,231.85,11.50237419]
[1758509258252,0.7,231.94,231.87,12.96484367]
[1758509258966,0.7,231.93,231.87,12.96484367]
[1758509259174,0.7,231.93,231.86,51.29531613]
[1758509259366,0.7,231.93,231.86,64.2601598]
[1758509259746,0.7,231.92,231.86,40.49294746]
[1758509259952,0.7,231.91,231.86,40.49294746]
[1758509260191,0.7,231.9,231.86,40.49294746]
[1758509260350,0.7,231.89,231.86,40.49294746]
[1758509260853,0.7,231.92,231.86,51.27531613]
[1758509261789,0.7,231.95,231.86,51.99531613]
[1758509262072,31.2,231.98,231.86,40.49294746]
[1758509262073,0.7,231.94,231.86,40.49294746]
[1758509262377,0.7,231.93,231.86,40.49294746]
[1758509263370,0.7,231.93,231.86,51.27531613]
[1758509263958,10.77619161,232.0,231.86,51.27531613]
[1758509263959,31.2,231.97,231.86,51.27531613]
[1758509264163,0.7,231.96,231.87,0.72]
[1758509264775,31.9,231.99,231.87,0.72]
[1758509265278,0.7,231.99,231.87,0.72]
[1758509265476,31.9,231.99,231.88,15.09401414]
[1758509265683,132.9,232.02,231.91,31.2]
[1758509265865,1e-08,232.03,231.92,36.88]
[1758509266271,1e-08,232.03,231.93,0.72]
[1758509266462,1e-08,232.03,231.93,2.44812304]
[1758509266979,1e-08,232.03,231.94,0.72]
[1758509267483,1e-08,232.03,231.95,15.08945893]
[1758509267988,1e-08,232.03,231.96,0.72]
[1758509268280,1e-08,232.03,231.97,36.14]
[1758509268765,1e-08,232.03,231.98,0.72]
[1758509269171,1e-08,232.03,232.0,31.2]
[1758509269565,1e-08,232.03,232.01,41.17015904]
[1758509269769,1e-08,232.03,232.01,42.8976104]
[1758509270081,1e-08,232.03,232.02,0.72]
[1758509270281,0.1,232.07,232.02,1.15099732]
[1758509270484,0.1,232.07,232.02,0.72]
[1758509270675,0.1,232.07,232.03,0.72]
[1758509271587,1e-08,232.07,232.06,31.2]
[1758509271791,1e-08,232.07,232.06,68.04]
[1758509274181,1e-08,232.07,232.06,72.34923037]
[1758509274689,1e-08,232.07,232.06,74.0763088]
[1758509276302,0.1,232.09,232.06,74.0763088]
[1758509276303,1e-08,232.09,232.06,74.0763088]
[1758509276467,1e-08,232.09,232.07,0.72]
[1758509277101,1e-08,232.09,232.08,0.65]
[1758509277272,1e-08,232.09,232.08,36.73]
[1758509278882,1e-08,232.09,232.08,41.03885901]
[1758509279571,1e-08,232.09,232.08,42.76563921]
[1758509280370,1e-08,232.09,232.08,43.19652511]
[1758509281197,1e-08,232.09,232.08,7.11652511]
[1758509281396,1e-08,232.09,232.08,42.74563921]
[1758509282388,1e-08,232.09,232.08,55.97760339]
[1758509282588,1e-08,232.09,232.08,56.40848929]
[1758509284899,1e-08,232.09,232.08,19.26760339]
[1758509285099,1e-08,232.09,232.08,55.28760339]
[1758509285306,1e-08,232.09,232.08,19.26760339]
[1758509285510,0.67000001,232.09,232.08,19.26760339]
[1758509285719,0.67000001,232.09,232.08,14.95874438]
[1758509285883,0.67000001,232.09,232.08,36.02]
[1758509289813,0.67000001,232.09,232.07,4.3090035]
[1758509289988,1e-08,232.09,232.08,36.0]
[1758509290191,0.70000001,232.09,232.08,36.0]
[1758509290790,0.70000001,232.09,231.69,11.97841882]
[1758509290791,5.0087418,232.09,231.97,4.31090227]
[1758509291098,0.7,232.08,231.99,12.95756398]
[1758509291313,0.7,232.07,232.0,36.0]
[1758509291514,0.7,232.06,232.01,4.31015904]
[1758509291721,0.7,232.05,232.02,36.0]
[1758509292032,0.7,232.04,232.02,36.0]
[1758509292322,0.7,232.03,232.02,36.0]
[1758509293084,1e-08,232.09,232.02,36.0]
[1758509293085,0.7,232.06,232.02,36.0]
[1758509293315,0.7,232.05,232.02,36.0]
[1758509293812,0.7,232.04,232.03,4.30978752]
[1758509294224,1e-08,232.09,232.03,4.30978752]
[1758509294523,1e-08,232.09,232.04,35.98]
[1758509294697,0.70000001,232.09,232.04,35.98]
[1758509294915,0.7,232.08,232.04,35.98]
[1758509295110,1e-08,232.09,232.05,0.71]
[1758509295309,1e-08,232.09,232.06,35.98]
[1758509295520,1e-08,232.09,232.06,36.69]
[1758509295729,1e-08,232.09,232.07,4.30904468]
[1758509296037,1e-08,232.09,232.07,17.97157366]
[1758509296249,1e-08,232.09,232.08,1.1408859]
[1758509296532,1e-08,232.09,232.08,37.1008859]
[1758509298727,1e-08,232.09,232.08,36.67]
[1758509299633,1e-08,232.09,232.08,36.65]
[1758509300724,1e-08,232.09,232.08,35.94]
[1758509301522,1e-08,232.09,232.08,36.65]
[1758509301721,1e-08,232.09,232.08,35.94]
[1758509302237,0.70000001,232.09,232.07,17.26157366]
[1758509302439,0.7,232.08,232.07,4.30904468]
[1758509302738,0.7,232.08,232.07,35.92]
[1758509303033,0.7,232.08,232.05,35.92]
[1758509303237,0.7,232.07,232.05,35.92]
[1758509303438,0.7,232.06,232.05,35.92]
[1758509304215,0.7,232.06,232.04,4.30954572]
[1758509304414,0.7,232.05,232.04,4.30954572]
[1758509305429,0.7,232.05,231.97,34.67899475]
[1758509305430,0.7,232.05,231.97,13.12463198]
[1758509305631,31.20000001,232.09,231.99,4.31047757]
[1758509305938,0.7,232.07,232.01,4.31015904]
[1758509306112,0.7,232.06,232.01,4.31015904]
[1758509306318,0.7,232.05,232.01,4.31015904]
[1758509306535,1e-08,232.09,232.01,15.08555665]
[1758509306841,0.7,232.05,232.01,15.08555665]
[1758509307624,0.69000001,232.09,232.02,0.66]
[1758509307838,0.69000001,232.09,232.04,15.08360627]
[1758509308039,0.69,232.08,232.04,50.98360627]
[1758509308254,0.69,232.07,232.04,50.98360627]
[1758509308729,0.69,232.06,232.04,40.20960179]
[1758509308925,1e-08,232.09,232.02,1.72760057]
[1758509308926,0.69,232.05,232.02,6.03744697]
[1758509309237,1e-08,232.09,232.02,41.93744697]
[1758509309238,0.69,232.04,232.02,41.93744697]
[1758509309542,0.69,232.07,232.02,40.2098464]
[1758509309714,0.69,232.06,232.02,40.2098464]
[1758509309933,0.69,232.05,232.02,40.20992915]
[1758509310139,0.69,232.04,232.02,40.20992915]
[1758509310448,0.69,232.03,232.02,40.20992915]
[1758509310755,0.69,232.05,232.02,40.20992915]
[1758509310963,0.69,232.04,232.02,40.20992915]
[1758509311157,1e-08,232.09,232.02,40.20992915]
[1758509311158,0.69,232.06,232.02,40.20992915]
[1758509311367,0.69,232.05,232.02,40.20992915]
[1758509311534,0.69,232.04,232.02,40.20992915]
[1758509311738,0.69000001,232.09,232.02,51.64486234]
[1758509311959,0.69000001,232.09,232.02,50.98486234]
[1758509312541,0.69,232.08,232.02,15.08486234]
[1758509312748,0.69,232.08,232.03,35.88]
[1758509313249,0.69,232.07,232.02,4.30992915]
[1758509313466,0.69000001,232.09,232.03,35.88]
[1758509313647,0.69000001,232.09,232.03,36.54]
[1758509313847,0.69000001,232.09,232.04,4.30960179]
[1758509314053,0.69,232.08,232.04,4.30960179]
[1758509314256,0.69,232.07,232.04,4.30960179]
[1758509314971,0.69000001,232.09,232.04,4.30960179]
[1758509315171,0.69,232.08,232.04,15.08360627]
[1758509315768,0.69,232.07,232.04,15.08360627]
[1758509315966,0.69000001,232.09,232.04,15.08360627]
[1758509316154,0.69,232.08,232.04,15.08360627]
[1758509316548,0.69,232.08,232.04,4.30960179]
[1758509316862,1e-08,232.09,232.04,4.30960179]
[1758509317069,0.69,232.08,232.04,4.30960179]
[1758509317263,0.69,232.07,232.04,4.30960179]
[1758509317772,0.69,232.06,232.03,4.30978508]
[1758509317971,0.69,232.05,232.03,40.16978508]
[1758509319148,1e-08,232.09,232.03,50.94425389]
[1758509319575,0.69,232.08,232.03,50.94425389]
[1758509319782,0.69,232.07,232.03,50.94425389]
[1758509320155,0.69,232.06,232.03,50.94425389]
[1758509320875,1e-08,232.09,232.04,0.66]
[1758509321258,1e-08,232.09,232.05,0.66]
[1758509321463,1e-08,232.09,232.06,35.84]
[1758509322657,1e-08,232.09,232.06,36.5]
[1758509322848,1e-08,232.09,232.07,4.96904468]
[1758509323252,1e-08,232.09,232.07,4.30904468]
[1758509324455,1e-08,232.09,232.07,4.96904468]
[1758509324865,1e-08,232.09,232.07,4.30904468]
[1758509325063,1e-08,232.09,232.07,4.96904468]
[1758509325272,1e-08,232.09,232.08,0.66]
[1758509326677,1e-08,232.09,232.07,4.30904468]
[1758509326881,1e-08,232.09,232.08,4.96885901]
[1758509327275,1e-08,232.09,232.08,4.30885901]
[1758509327781,1e-08,232.09,232.08,4.96885901]
[1758509328778,1e-08,232.09,232.08,4.30885901]
[1758509329675,1e-08,232.09,232.07,4.30904468]
[1758509330470,1e-08,232.09,232.07,4.96904468]
[1758509330787,1e-08,232.09,232.07,4.30904468]
[1758509331475,1e-08,232.09,232.08,0.66]
[1758509331986,1e-08,232.09,232.08,4.96885901]
[1758509333289,1e-08,232.09,232.08,4.30885901]
[1758509333591,1e-08,232.09,232.08,4.96885901]
[1758509334269,1e-08,232.09,232.07,4.30904468]
[1758509334479,1e-08,232.09,232.07,4.96904468]
[1758509335880,1e-08,232.09,232.08,35.76]
[1758509336110,1e-08,232.09,232.08,35.74]
[1758509336383,1e-08,232.09,232.08,40.04885901]
[1758509336779,0.69000001,232.09,232.08,40.04885901]
[1758509336993,0.69000001,232.09,232.06,4.30907385]
[1758509337191,0.68000001,232.09,232.07,35.74]
[1758509337504,0.68,232.08,232.07,35.74]
[1758509337701,0.68,232.08,232.06,4.30907385]
[1758509337995,0.68,232.08,232.07,35.74]
[1758509339196,0.68,232.08,232.07,40.04904468]
[1758509339388,1e-08,232.09,232.07,40.04904468]
[1758509339693,0.68000001,232.09,232.07,40.04904468]
[1758509341397,1e-08,232.09,232.07,40.04904468]
[1758509341877,0.68000001,232.09,232.07,40.04904468]
[1758509342087,1e-08,232.09,232.07,40.04904468]
[1758509343086,1e-08,232.09,232.08,0.71]
[1758509344797,1e-08,232.09,232.08,5.01885901]
[1758509346410,1e-08,232.09,232.08,39.98885901]
[1758509346897,1e-08,232.09,232.08,40.69885901]
[1758509347608,1e-08,232.09,232.08,39.98885901]
[1758509350904,0.69000001,232.09,232.05,4.30927976]
[1758509351204,0.69000001,232.09,232.05,39.96927976]
[1758509351205,0.69,232.08,232.05,39.96927976]
[1758509351409,0.69,232.07,232.06,35.66]
[1758509351598,1e-08,232.09,232.06,35.66]
[1758509352509,1e-08,232.09,232.08,31.2]
[1758509352699,1e-08,232.09,232.08,66.84]
[1758509353001,1e-08,232.09,232.08,71.82885901]
[1758509353631,1e-08,232.09,232.08,35.50885901]
[1758509353912,1e-08,232.09,232.08,71.14885901]
[1758509354106,1e-08,232.09,232.08,35.50885901]
[1758509354416,0.69000001,232.09,232.08,71.14885901]
[1758509355005,1e-08,232.09,232.08,71.14885901]
[1758509355219,1e-08,232.09,232.04,0.68]
[1758509355220,1e-08,232.09,232.06,4.30922061]
[1758509355510,0.69,232.08,232.02,4.30997327]
[1758509355709,0.69,232.07,232.03,35.64]
[1758509355899,1e-08,232.09,232.03,35.64]
[1758509355900,0.69,232.06,232.03,35.64]
[1758509356205,1e-08,232.09,232.03,35.64]
[1758509356415,0.69,232.05,232.03,35.64]
[1758509356615,1e-08,232.09,232.03,35.64]
[1758509356821,0.69,232.07,232.03,35.64]
[1758509357025,0.69,232.06,232.04,4.30960179]
[1758509357513,0.69,232.05,232.04,4.30960179]
[1758509359012,1e-08,232.09,232.04,4.30960179]
[1758509359319,0.69,232.05,232.04,35.62]
[1758509360206,0.69,232.05,232.04,39.92960179]
[1758509360603,0.69,232.07,232.04,39.92960179]
[1758509360801,0.69,232.06,232.0,31.2]
[1758509361116,4.30885859,232.09,231.95,0.68]
[1758509361117,0.69,232.05,231.95,0.68]
[1758509361302,0.69,232.04,231.98,39.91071644]
[1758509362101,0.69,232.04,231.98,50.68750754]
[1758509365624,0.69,232.05,231.99,0.68]
[1758509366139,0.69,232.05,231.96,35.51094402]
[1758509366320,0.69,232.04,231.97,35.58]
[1758509366625,0.69,232.03,231.97,35.58]
[1758509366813,0.69,232.03,231.98,4.31071644]
[1758509367018,0.72,232.02,231.98,4.31071644]
[1758509367629,10.7716834,232.09,231.98,4.31071644]
[1758509367924,0.72,232.08,231.98,4.31071644]
[1758509368105,0.72,232.07,231.98,4.98071644]
[1758509368304,0.72,232.06,231.98,4.98071644]
[1758509368506,0.72,232.05,231.98,4.98071644]
[1758509368703,0.72,232.04,231.93,31.2]
[1758509368906,4.30997327,232.02,231.91,36.23]
[1758509369323,0.72,232.01,231.91,40.54183743]
[1758509369522,0.72,232.01,231.92,0.67]
[1758509370110,0.72,232.01,231.92,36.23]
[1758509370318,0.72,232.0,231.92,35.56]
[1758509370518,0.72,231.99,231.92,35.56]
[1758509370730,0.72,231.98,231.91,35.56]
[1758509371042,5.03097225,231.97,231.91,35.56]
[1758509371330,0.72,231.96,231.91,35.56]
[1758509371544,0.72,231.95,231.91,35.56]
[1758509372133,0.72,231.94,231.9,4.31219445]
[1758509372509,0.72,231.97,231.91,0.67]
[1758509373231,0.72,231.97,231.9,4.31219445]
[1758509373432,0.72,231.96,231.89,35.56]
[1758509373657,0.72,231.95,231.89,35.56]
[1758509373806,0.72,231.94,231.89,35.56]
[1758509374820,132.92,231.97,231.9,0.67]
[1758509375436,132.2,231.97,231.9,0.67]
[1758509375848,5.03042209,232.0,231.9,0.67]
[1758509376812,5.03042209,232.0,231.91,4.31201759]
[1758509377017,0.72,231.99,231.91,4.98201759]
[1758509377239,0.72,232.01,231.92,0.67]
[1758509378124,0.72,232.03,231.92,0.67]
[1758509378436,0.72,232.02,231.92,0.67]
[1758509378941,0.72,232.02,231.93,15.09076013]
[1758509379114,0.72,232.02,231.94,0.67]
[1758509379315,31.92,232.04,231.94,36.19]
[1758509379619,31.92,232.04,231.95,0.67]
[1758509379925,4.30947006,232.05,231.95,0.67]
[1758509379926,0.72,232.03,231.95,0.67]
[1758509380220,31.2,232.05,231.95,0.67]
[1758509380421,36.2294309,232.05,231.95,0.67]
[1758509380821,36.2294309,232.05,231.93,39.83164575]
[1758509381021,0.72,232.04,231.93,4.31164575]
[1758509381234,0.72,232.03,231.93,4.31164575]
[1758509381431,0.72,232.02,231.93,4.31164575]
[1758509381628,0.72,232.01,231.93,4.31164575]
[1758509382040,0.72,232.01,231.93,4.98164575]
[1758509382446,0.72,232.0,231.93,4.98164575]
[1758509382621,0.72,231.99,231.93,4.98164575]
[1758509384221,0.72,232.01,231.93,4.98164575]
[1758509384421,0.72,232.01,231.93,15.76076013]
[1758509384838,0.72,232.01,231.94,0.67]
[1758509387435,0.72,231.95,231.88,4.98254648]
[1758509388966,36.23090113,231.98,231.89,0.67]
[1758509390139,36.23090113,231.98,231.9,4.31220353]
[1758509390457,0.72,231.97,231.9,4.31220353]
[1758509391258,35.51090113,231.98,231.91,0.67]
[1758509391259,31.2,231.98,231.91,0.67]
[1758509391555,0.72,231.99,231.91,0.67]
[1758509392559,0.72,231.99,231.92,4.31183166]
[1758509392937,0.72,231.99,231.92,4.98183166]
[1758509393160,0.72,231.99,231.92,15.76141082]
[1758509394353,132.2,232.01,231.93,0.67]
[1758509394559,132.92,232.01,231.93,0.67]
[1758509395269,132.92,232.01,231.94,4.31145986]
[1758509395634,0.72,232.0,231.94,4.31145986]
[1758509396759,0.72,232.0,231.93,0.67]
[1758509397255,0.72,232.0,231.93,4.98163693]
[1758509400255,4.30917808,232.07,231.94,0.69]
[1758509400456,36.14,232.06,231.94,0.69]
[1758509400842,0.72,232.06,231.94,0.69]
[1758509402049,0.72,232.06,231.95,15.08945893]
[1758509402359,4.30927121,232.06,231.96,0.69]
[1758509402535,0.72,232.05,231.96,0.69]
[1758509402739,0.72,232.05,231.93,35.51148167]
[1758509402961,0.72,232.04,231.93,36.20148167]
[1758509403146,36.12,232.03,231.94,0.69]
[1758509403752,35.4,232.02,231.94,0.69]
[1758509404151,5.03015904,232.01,231.95,4.31127398]
[1758509404346,0.72,232.01,231.95,4.31127398]
[1758509404664,0.72,232.0,231.95,4.31127398]
[1758509404962,0.72,231.99,231.93,4.31149423]
[1758509405681,50.48495231,232.02,231.92,0.69]
[1758509405843,0.72,231.99,231.92,0.69]
[1758509406242,5.03058453,231.99,231.92,5.00179604]
[1758509406559,0.72,231.99,231.92,5.00179604]
[1758509406954,0.72,231.99,231.92,4.31179604]
[1758509407152,0.72,231.99,231.93,0.69]
[1758509407742,0.72,232.01,231.93,0.69]
[1758509408067,0.72,232.04,231.95,31.2]
[1758509408265,0.72,232.08,231.96,15.7788084]
[1758509408576,0.72,232.08,231.97,0.69]
[1758509409950,0.72,232.08,231.98,15.08750754]
[1758509410150,0.72,232.08,231.99,0.69]
[1758509411074,0.72,232.08,232.0,15.08620688]
[1758509411252,0.72,232.08,232.01,0.7]
[1758509412174,0.72,232.08,232.02,4.30997327]
[1758509414368,0.72,232.08,232.03,0.7]
[1758509415273,132.20000001,232.09,232.02,4.30997327]
[1758509415274,0.72,232.07,232.02,4.30997327]
[1758509415469,0.72,232.07,232.02,5.00997327]
[1758509415668,0.72,232.06,232.02,5.00997327]
[1758509415894,136.50873309,232.09,231.95,66.58]
[1758509415895,0.72,232.05,231.99,0.7]
[1758509416208,0.72,232.05,231.96,0.7]
[1758509416369,3.56246728,232.05,231.94,5.01145986]
[1758509416562,0.72,232.04,231.94,0.7]
[1758509418261,4.30978752,232.03,231.94,0.7]
[1758509418496,36.04,232.02,231.94,0.7]
[1758509418796,36.04,232.02,231.94,5.01136966]
[1758509418963,0.72,232.01,231.94,5.01136966]
[1758509419163,0.72,232.0,231.94,5.01136966]
[1758509419794,5.03037789,232.0,231.94,5.01136966]
[1758509419963,0.72,232.0,231.94,5.01136966]
[1758509422677,5.03039841,232.0,231.94,0.7]
[1758509423687,5.03039841,232.0,231.94,5.01144951]
[1758509425081,0.72,232.0,231.94,5.01144951]
[1758509426098,5.03007655,232.02,231.95,0.7]
[1758509426488,0.72,232.02,231.95,0.7]
[1758509426901,167.48,232.03,231.95,0.7]
[1758509427104,171.78984775,232.03,231.96,4.31108811]
[1758509427403,132.86,232.03,231.97,0.68]
[1758509427699,137.16979624,232.03,231.97,0.68]
[1758509427897,137.16979624,232.03,231.96,4.31108811]
[1758509428099,137.16979624,232.03,231.96,4.99108811]
[1758509429310,136.50979624,232.03,231.96,4.99108811]
[1758509429606,0.66,232.02,231.96,4.99108811]
[1758509432599,0.66,232.08,231.97,0.68]
[1758509433114,0.66,232.08,231.98,12.95924318]
[1758509433406,0.66,232.08,232.0,4.31034482]
[1758509433612,0.66,232.08,232.01,0.68]
[1758509433788,1e-08,232.09,232.01,0.68]
[1758509434714,1e-08,232.09,232.02,12.95756398]